bitfinex/quotes_ETHUSD_20240925
["timestamp","ask_amount","ask_price","bid_price","bid_amount"]
[1727290439867,0.14206644,2588.6,2588.5,3.93981339]
[1727290440174,0.0371716,2588.6,2588.5,3.93981339]
[1727290440353,0.0371716,2588.6,2588.5,3.86324]
[1727290442661,0.14206644,2588.6,2588.5,3.86324]
[1727290442852,0.0371716,2588.6,2588.5,3.86324]
[1727290443173,0.7998,2588.5,2588.4,3.86339]
[1727290443974,0.90469484,2588.5,2588.4,3.86339]
[1727290444875,0.90469484,2588.5,2588.3,3.86351]
[1727290445054,0.90469484,2588.5,2587.9,2.44139307]
[1727290445055,0.90469484,2588.5,2588.0,3.86397]
[1727290445351,0.90469484,2588.5,2588.2,3.86367]
[1727290445662,0.90469484,2588.5,2588.1,3.86382]
[1727290445893,0.90469484,2588.5,2588.2,3.86367]
[1727290447088,0.90469484,2588.5,2587.8,3.86419]
[1727290447089,0.7586,2588.3,2587.8,3.86419]
[1727290447244,0.7586,2588.3,2588.0,3.86396]
[1727290447480,0.10458982,2588.2,2588.0,3.86396]
[1727290447752,0.7586,2588.3,2587.9,3.8641]
[1727290448236,0.10458982,2588.2,2587.9,3.8641]
[1727290448445,1.38878931,2588.3,2588.0,3.8639]
[1727290448679,0.10458982,2588.1,2588.0,7.72779]
[1727290448845,0.7586,2588.3,2588.0,3.86389]
[1727290449034,0.7586,2588.3,2587.8,3.86424]
[1727290449035,0.10458982,2588.1,2587.9,3.86412]
[1727290449373,0.10458982,2588.0,2587.9,3.86412]
[1727290449593,0.7586,2588.3,2587.9,3.86412]
[1727290449906,0.7586,2588.3,2588.0,3.86398]
[1727290450765,0.7586,2588.3,2588.0,3.8639]
[1727290451073,0.7586,2588.3,2588.1,3.86381]
[1727290451462,0.7586,2588.3,2588.2,3.86368]
[1727290451660,0.7623,2588.5,2588.3,3.86342]
[1727290452399,0.7623,2588.5,2588.4,3.86339]
[1727290452752,0.0371716,2588.6,2588.4,3.86339]
[1727290452753,0.0371716,2588.6,2588.5,3.86324]
[1727290452964,0.0371716,2588.6,2588.5,4.88486231]
[1727290454856,0.0371716,2588.6,2588.5,4.96142916]
[1727290456200,0.0371716,2588.6,2588.5,4.88486231]
[1727290457133,0.8114716,2588.6,2588.5,4.88486231]
[1727290457261,0.8114716,2588.6,2588.5,3.86324]
[1727290457459,0.91253966,2588.6,2588.5,3.86324]
[1727290458475,0.13823966,2588.6,2588.5,3.86324]
[1727290458859,0.0371716,2588.6,2588.5,3.86324]
[1727290459107,0.13823966,2588.6,2588.5,3.86324]
[1727290459408,0.13823966,2588.6,2588.5,4.249564]
[1727290459409,0.13480811,2588.6,2588.5,4.249564]
[1727290459620,0.0371716,2588.6,2588.5,4.249564]
[1727290462688,0.0371716,2588.6,2588.5,3.86324]
[1727290462689,0.13513307,2588.6,2588.5,3.86324]
[1727290462892,0.0371716,2588.6,2588.5,3.86324]
[1727290463081,0.13513307,2588.6,2588.5,3.86324]
[1727290463276,0.13513307,2588.6,2588.4,3.86338]
[1727290463497,0.8193,2588.5,2588.2,7.72717]
[1727290464017,0.8193,2588.5,2588.2,3.86357]
[1727290464221,0.8193,2588.5,2588.1,3.86383]
[1727290464222,0.09796147,2588.4,2588.1,3.86383]
[1727290464586,0.09796147,2588.4,2588.0,3.86389]
[1727290464772,0.09796147,2588.4,2588.2,3.86366]
[1727290464986,0.09796147,2588.4,2588.2,7.72723]
[1727290465186,0.09796147,2588.4,2588.3,3.86353]
[1727290467318,0.09796147,2588.4,2588.1,3.86375]
[1727290467500,0.09796147,2588.4,2588.2,3.86367]
[1727290468501,0.09796147,2588.4,2588.1,3.86375]
[1727290468698,0.09796147,2588.4,2588.2,3.86368]
[1727290474220,0.57971378,2588.4,2588.1,3.86375]
[1727290474922,0.8224,2588.3,2587.9,3.86403]
[1727290475126,4.78254837,2588.3,2587.9,3.86403]
[1727290475328,0.8224,2588.2,2587.8,3.86423]
[1727290475632,0.92003647,2588.2,2587.8,3.86423]
[1727290475827,4.78385647,2588.2,2587.7,3.86431]
[1727290476001,4.68625,2588.1,2587.7,3.86431]
[1727290476207,4.78285443,2588.1,2587.7,3.86431]
[1727290476412,0.09763647,2588.0,2587.7,3.86431]
[1727290477693,0.09763647,2588.0,2587.8,3.86428]
[1727290479721,0.09763647,2588.0,2587.7,3.86431]
[1727290479900,0.09763647,2588.0,2587.8,3.86416]
[1727290482032,0.09763647,2588.0,2587.9,3.86413]
[1727290488773,0.09763647,2588.0,2587.7,7.72869]
[1727290489080,0.09763647,2588.0,2587.8,3.86421]
[1727290490382,0.09763647,2588.0,2587.9,3.86413]
[1727290491495,0.09663252,2588.0,2587.9,4.717559]
[1727290492090,0.8209,2588.3,2588.0,3.86389]
[1727290492592,0.8209,2588.3,2587.9,3.86413]
[1727290492801,0.8209,2588.3,2588.0,3.86395]
[1727290494060,0.8209,2588.3,2587.9,3.86413]
[1727290494399,4.68451,2588.3,2587.9,3.86413]
[1727290494970,3.86375,2588.2,2587.6,0.8081]
[1727290495313,3.86375,2588.2,2587.7,3.86443]
[1727290495314,0.8226,2588.1,2587.7,3.86443]
[1727290495596,0.8226,2588.1,2587.8,3.86418]
[1727290497768,0.8226,2588.1,2587.6,3.86447]
[1727290498099,0.8226,2588.1,2587.8,3.86423]
[1727290499215,0.8226,2588.1,2587.8,7.72846]
[1727290499390,0.8226,2588.1,2587.8,3.86423]
[1727290500905,0.8226,2588.1,2587.9,3.8641]
[1727290501481,0.8036,2588.4,2588.1,3.86381]
[1727290501682,1.44210753,2588.4,2588.1,3.86381]
[1727290501879,0.8036,2588.4,2588.2,3.86364]
[1727290502233,0.8036,2588.4,2588.1,3.86381]
[1727290502380,0.8036,2588.4,2588.1,7.72758]
[1727290502766,0.8036,2588.4,2588.1,3.86377]
[1727290502968,0.8036,2588.4,2588.0,3.86398]
[1727290503371,0.09668992,2588.3,2588.0,3.86398]
[1727290505670,0.09668992,2588.3,2587.4,3.7761]
[1727290505671,0.7991,2588.2,2587.4,3.7761]
[1727290505789,0.7991,2588.2,2587.9,3.86405]
[1727290505790,0.46341581,2588.1,2587.9,3.86405]
[1727290506066,0.09668992,2588.1,2587.9,3.86405]
[1727290506231,0.09668992,2588.1,2587.9,7.72811]
[1727290506512,0.09668992,2588.1,2588.0,3.86398]
[1727290507522,0.09668992,2588.1,2587.8,4.62506]
[1727290508217,0.09668992,2588.1,2587.9,3.86405]
[1727290509234,0.09668992,2588.1,2587.8,4.62494]
[1727290510128,0.09668992,2588.1,2587.9,3.86412]
[1727290510293,0.09668992,2588.1,2587.8,3.86427]
[1727290510488,0.7614,2588.0,2587.8,3.86427]
[1727290510697,0.85803252,2588.0,2587.6,3.86446]
[1727290511290,4.72205252,2588.0,2587.6,3.86446]
[1727290511486,4.72209252,2588.0,2587.4,3.86476]
[1727290511693,7.72865,2587.8,2587.3,4.67861]
[1727290511892,4.62592,2587.7,2587.2,3.86511]
[1727290512207,4.81915459,2587.7,2587.2,3.86511]
[1727290512423,1.2325215,2587.6,2587.2,3.86511]
[1727290512737,0.7567,2587.4,2587.1,3.86531]
[1727290513029,0.7567,2587.4,2587.3,3.86503]
[1727290513238,0.7567,2587.6,2587.3,3.86503]
[1727290513807,4.62129,2587.6,2587.2,3.86516]
[1727290514037,0.7567,2587.6,2587.2,3.86516]
[1727290514230,4.62131,2587.6,2587.2,3.86516]
[1727290514507,5.469885,2587.6,2587.2,3.86516]
[1727290514906,1.605275,2587.6,2587.2,3.86511]
[1727290515632,5.469865,2587.6,2587.2,3.86511]
[1727290516020,3.86476,2587.5,2587.0,3.86539]
[1727290516247,0.9334625,2587.5,2587.1,3.86523]
[1727290516429,5.469865,2587.6,2587.1,3.86523]
[1727290518430,0.09661339,2587.5,2587.2,3.86518]
[1727290518620,0.8049,2587.4,2587.2,3.86518]
[1727290518825,0.8049,2587.4,2587.0,3.86538]
[1727290519141,0.09661339,2587.3,2587.0,7.73076]
[1727290519346,0.09661339,2587.3,2587.0,3.86538]
[1727290519642,0.8074,2587.2,2586.8,3.86566]
[1727290519811,5.72366783,2587.2,2586.8,3.86566]
[1727290520005,4.76866814,2587.2,2586.8,3.86566]
[1727290520437,0.90346814,2587.2,2586.8,3.86566]
[1727290521557,4.76866814,2587.2,2586.8,3.86566]
[1727290521709,0.8074,2587.0,2586.5,3.86619]
[1727290521908,3.86564,2586.9,2586.5,3.86619]
[1727290522441,0.8074,2587.0,2586.5,7.73231]
[1727290522442,0.09502536,2586.8,2586.5,7.73231]
[1727290522742,0.8074,2587.0,2586.6,3.86603]
[1727290522947,0.09502536,2586.7,2586.6,3.86603]
[1727290523148,0.8074,2587.0,2586.7,3.86582]
[1727290523309,0.8074,2587.3,2586.7,0.8172]
[1727290523513,0.8074,2587.3,2586.9,3.86553]
[1727290523817,0.8074,2587.3,2586.8,3.86575]
[1727290524013,4.67246,2587.3,2586.8,7.7315]
[1727290524321,0.8074,2587.3,2586.9,3.86561]
[1727290524867,0.8074,2587.3,2586.9,3.86562]
[1727290527125,0.8074,2587.3,2587.1,3.86526]
[1727290527394,0.8074,2587.3,2587.0,3.86545]
[1727290527577,0.8074,2587.3,2587.1,3.86532]
[1727290528160,0.8074,2587.3,2587.0,3.86546]
[1727290528360,0.8074,2587.3,2586.9,4.720397]
[1727290528922,0.8074,2587.3,2587.0,3.86547]
[1727290529758,3.8655,2587.0,2586.6,3.86606]
[1727290530329,0.7835,2587.1,2586.6,3.86606]
[1727290530532,4.64885,2587.1,2586.6,3.86606]
[1727290531280,4.64885,2587.1,2586.7,3.8659]
[1727290531767,4.64885,2587.1,2586.6,3.86606]
[1727290531974,4.64885,2587.1,2586.6,7.73205]
[1727290532349,0.7835,2587.1,2586.7,3.86587]
[1727290532556,4.64891,2587.1,2586.6,3.86599]
[1727290533244,4.64891,2587.1,2586.6,3.86598]
[1727290533471,0.0951402,2587.0,2586.6,3.86598]
[1727290533779,0.0951402,2587.0,2586.7,3.86592]
[1727290535800,0.0951402,2587.0,2586.6,3.86598]
[1727290536017,0.0951402,2587.0,2586.7,3.86585]
[1727290538947,0.0951402,2587.0,2586.8,3.86575]
[1727290540604,0.0951402,2587.0,2586.7,3.86585]
[1727290542474,0.0951402,2587.0,2586.7,7.7317]
[1727290543644,0.0951402,2587.0,2586.7,3.86585]
[1727290543801,0.0951402,2587.0,2586.7,7.7317]
[1727290544104,0.0951402,2587.0,2586.7,3.86585]
[1727290544972,0.0951402,2587.0,2586.7,7.73171]
[1727290545463,0.0951402,2587.0,2586.8,3.86575]
[1727290546063,0.0951402,2587.0,2586.4,0.781]
[1727290546260,0.0951402,2587.0,2586.7,3.86592]
[1727290546459,0.0951402,2587.0,2586.7,7.73175]
[1727290549391,0.0951402,2587.0,2586.7,3.86583]
[1727290549909,0.0951402,2587.0,2586.7,7.73167]
[1727290550803,0.0951402,2587.0,2586.7,3.86583]
[1727290551787,0.8322,2586.9,2586.5,3.86618]
[1727290552000,0.8322,2586.9,2586.5,7.73233]
[1727290552170,0.09432671,2586.8,2586.6,3.86598]
[1727290552384,0.09432671,2586.8,2586.5,3.86615]
[1727290552385,0.09432671,2586.8,2586.5,3.86621]
[1727290553180,2.25582327,2586.8,2586.2,0.7904]
[1727290553385,2.25582327,2586.8,2586.1,3.8667]
[1727290553386,1.68228089,2586.4,2586.1,3.8667]
[1727290553910,1.68228089,2586.4,2585.9,3.86704]
[1727290553911,0.7808,2586.2,2585.9,3.86704]
[1727290554117,0.7808,2586.2,2585.9,3.86703]
[1727290554405,0.7808,2586.2,2586.0,3.8669]
[1727290554406,0.09420226,2586.1,2586.0,3.8669]
[1727290554611,0.09420226,2586.1,2586.0,3.86697]
[1727290555874,0.09420226,2586.1,2585.9,3.86703]
[1727290556100,0.09420226,2586.1,2586.0,3.86697]
[1727290558170,0.09420226,2586.1,2586.0,5.31730385]
[1727290558373,0.09420226,2586.1,2586.0,8.96471907]
[1727290558608,0.754,2586.7,2586.6,3.86607]
[1727290559314,0.84706284,2586.7,2586.6,3.86607]
[1727290560074,0.09306284,2586.7,2586.6,3.86607]
[1727290560596,0.7982,2586.9,2586.7,3.86578]
[1727290560772,0.7982,2586.9,2586.8,3.86578]
[1727290560982,0.7982,2587.1,2586.9,3.86559]
[1727290561228,0.7982,2587.1,2587.0,3.86548]
[1727290561509,0.7982,2587.1,2586.9,7.73113]
[1727290561706,0.7982,2587.1,2586.9,3.86554]
[1727290561912,0.7982,2587.1,2586.9,7.73109]
[1727290562122,0.40346276,2587.5,2587.0,3.86548]
[1727290562473,0.40346276,2587.5,2586.6,3.86606]
[1727290562474,1.19652628,2587.4,2587.3,3.86503]
[1727290562613,0.7697,2587.4,2587.3,3.86503]
[1727290563424,0.7697,2587.4,2587.2,3.86517]
[1727290563625,0.86337563,2587.4,2587.2,3.86517]
[1727290563998,0.86337563,2587.4,2587.2,3.86508]
[1727290564200,0.86337563,2587.4,2587.3,3.86503]
[1727290564803,0.86337563,2587.4,2587.2,3.86508]
[1727290565386,0.86337563,2587.4,2587.2,7.73017]
[1727290565582,0.86337563,2587.4,2587.2,3.86508]
[1727290566309,0.09367563,2587.4,2587.2,3.86508]
[1727290566510,3.0,2587.8,2587.3,4.69143]
[1727290566825,7.36,2587.9,2587.3,4.69143]
[1727290567045,1.22300925,2588.0,2587.5,3.8647]
[1727290567349,0.89509193,2587.9,2587.5,7.72935]
[1727290567653,0.89509193,2587.9,2587.6,3.86457]
[1727290568752,0.89509193,2587.9,2587.5,3.8646]
[1727290569910,0.89509193,2587.9,2587.6,3.86457]
[1727290571436,0.89509193,2587.9,2587.6,3.86455]
[1727290572218,0.89509193,2587.9,2587.5,7.72924]
[1727290572219,4.54250715,2587.9,2587.5,7.72924]
[1727290572437,0.91573272,2587.8,2587.5,3.8646]
[1727290572827,3.64741522,2587.9,2587.6,3.86455]
[1727290576256,3.64741522,2587.9,2587.7,3.86442]
[1727290576752,0.7508,2588.0,2587.7,3.86442]
[1727290578244,0.09522631,2587.9,2587.7,3.86442]
[1727290579946,0.09522631,2587.9,2587.7,7.72869]
[1727290580147,0.58490847,2587.9,2587.7,7.72869]
[1727290580697,0.58490847,2587.9,2587.7,3.86434]
[1727290580841,0.7557,2587.8,2587.5,3.86462]
[1727290581465,0.09522631,2587.7,2587.5,3.86462]
[1727290581666,0.49880237,2587.7,2587.5,3.86462]
[1727290582099,0.09522631,2587.6,2587.5,3.86462]
[1727290582911,0.09522631,2587.6,2587.3,3.86491]
[1727290583223,1.68182311,2587.4,2587.1,3.86521]
[1727290583427,1.68182311,2587.4,2587.2,3.8651]
[1727290583428,1.94034805,2587.4,2587.2,3.8651]
[1727290583717,0.09522631,2587.3,2587.2,3.8651]
[1727290584691,2.49002311,2587.5,2587.2,3.8651]
[1727290584892,0.09522631,2587.3,2587.2,3.8651]
[1727290585208,2.49002311,2587.5,2587.3,3.86494]
[1727290585209,0.8082,2587.5,2587.3,3.86494]
[1727290585614,1.09753186,2587.5,2587.3,3.86494]
[1727290587315,1.09753186,2587.5,2587.4,3.86488]
[1727290587618,0.8082,2587.5,2587.4,3.86488]
[1727290593337,0.8247,2587.7,2587.2,0.7848]
[1727290593519,0.09500621,2587.5,2587.4,3.86481]
[1727290593723,0.8247,2587.9,2587.4,3.86481]
[1727290593894,0.8247,2587.9,2587.7,3.8643]
[1727290594104,1.07535231,2587.9,2587.7,7.72863]
[1727290594636,1.07535231,2587.9,2587.7,3.8643]
[1727290596846,1.07535231,2587.9,2587.7,7.72865]
[1727290597200,1.07535231,2587.9,2587.7,3.8643]
[1727290597427,1.95754065,2587.8,2587.7,3.8643]
[1727290603403,1.68182311,2588.0,2587.9,3.86413]
[1727290603618,0.40318708,2588.2,2588.1,3.86383]
[1727290603900,0.8155,2588.5,2588.4,3.86339]
[1727290604096,0.0371716,2588.6,2588.5,3.86324]
[1727290607746,0.0371716,2588.6,2588.2,3.86359]
[1727290607931,0.7748,2588.5,2588.2,3.86358]
[1727290608146,1.22971876,2588.5,2588.2,3.86358]
[1727290608647,0.09545598,2588.4,2588.2,3.86358]
[1727290608853,0.09545598,2588.4,2588.0,3.86389]
[1727290609041,3.64062422,2588.2,2587.8,3.8642]
[1727290609615,0.09545598,2588.1,2587.8,3.8642]
[1727290609948,0.09545598,2588.1,2587.8,7.72841]
[1727290610147,0.09545598,2588.1,2587.8,3.8642]
[1727290610350,0.09545598,2588.1,2587.8,7.7284]
[1727290610530,0.8245,2588.0,2587.2,4.67872]
[1727290610722,0.8245,2588.0,2587.6,3.86446]
[1727290610925,4.46512422,2588.0,2587.6,7.72895]
[1727290611125,4.46512422,2588.0,2587.6,3.86446]
[1727290611342,0.5793292,2587.9,2587.6,3.86446]
[1727290611757,0.5793292,2587.9,2587.5,3.86472]
[1727290611978,3.64062422,2587.8,2587.2,0.8136]
[1727290612160,3.73707506,2587.8,2587.4,3.86485]
[1727290612465,3.73707506,2587.8,2587.5,3.86465]
[1727290612670,0.60099567,2587.8,2587.5,3.86465]
[1727290615078,0.60099567,2587.8,2587.3,3.86495]
[1727290615674,0.60099567,2587.8,2587.4,3.86488]
[1727290616375,0.60099567,2587.8,2587.3,7.7299]
[1727290616966,0.60099567,2587.8,2587.3,3.86495]
[1727290617278,0.60099567,2587.8,2586.9,3.8656]
[1727290617279,0.09645084,2587.8,2587.6,3.86456]
[1727290617671,0.8242,2588.0,2587.6,7.72903]
[1727290617975,0.09601082,2587.7,2587.6,7.72903]
[1727290618133,0.8242,2588.0,2587.6,7.72903]
[1727290618331,0.09601082,2587.9,2587.6,7.72903]
[1727290618734,0.09601082,2587.9,2587.7,3.86442]
[1727290619166,3.7875,2588.2,2587.6,3.86447]
[1727290619389,0.09601082,2587.8,2587.6,3.86447]
[1727290619703,7.65119,2588.2,2587.6,3.86447]
[1727290620018,0.09601082,2587.7,2587.6,3.86447]
[1727290620301,3.7875,2588.2,2587.6,3.86447]
[1727290620512,5.52810622,2588.1,2587.4,4.64494]
[1727290620666,5.52810622,2588.1,2587.4,0.7801]
[1727290620869,7.50477422,2587.9,2587.3,3.86491]
[1727290621091,3.86451,2587.7,2587.2,0.8285]
[1727290621309,0.7618,2587.8,2587.2,0.8285]
[1727290621463,5.45274742,2587.8,2587.2,4.69357]
[1727290621801,1.58845742,2587.8,2587.3,3.86496]
[1727290622006,0.794,2588.1,2587.4,3.86477]
[1727290622387,3.8643,2587.8,2587.1,3.86531]
[1727290622583,0.483054,2587.7,2587.2,3.86514]
[1727290623025,4.25087,2587.7,2587.2,3.86514]
[1727290623223,4.25087,2587.7,2587.1,3.86533]
[1727290623513,4.25087,2587.7,2587.1,7.73058]
[1727290623514,0.09573342,2587.6,2587.1,7.73058]
[1727290623712,0.8229,2587.5,2586.9,0.7796]
[1727290623878,0.8229,2587.5,2587.0,3.86536]
[1727290624303,0.8229,2587.5,2587.0,3.86534]
[1727290624304,0.09573342,2587.4,2587.0,3.86534]
[1727290624584,0.09573342,2587.4,2587.0,7.73072]
[1727290624888,0.09573342,2587.4,2587.0,3.86534]
[1727290625231,0.09573342,2587.4,2587.0,0.851059]
[1727290625385,3.8646,2587.6,2587.0,0.851059]
[1727290625581,0.09573342,2587.3,2587.1,3.8653]
[1727290625827,3.8646,2587.6,2587.1,3.8653]
[1727290625989,0.09573342,2587.2,2587.1,3.8653]
[1727290626341,3.8646,2587.6,2587.1,3.8653]
[1727290626513,0.09573342,2587.2,2587.1,3.8653]
[1727290626819,4.45352422,2587.8,2587.3,3.86502]
[1727290628019,0.8129,2587.8,2587.4,4.64078]
[1727290628222,7.36,2587.9,2587.4,4.64078]
[1727290628399,11.22414,2587.9,2587.4,4.64078]
[1727290628601,12.85458435,2587.9,2587.4,4.64078]
[1727290629225,16.71884435,2587.9,2587.4,0.7759]
[1727290629392,3.86428,2587.8,2587.2,4.65735]
[1727290629795,5.49458435,2587.9,2587.2,4.6573]
[1727290629998,0.7838,2587.6,2587.2,4.6573]
[1727290630530,0.7838,2587.6,2587.2,3.8651]
[1727290631128,0.7838,2587.6,2587.2,7.7302]
[1727290631344,0.7838,2587.6,2587.2,3.8651]
[1727290631992,3.0,2588.0,2587.5,3.86465]
[1727290632205,3.0,2588.0,2587.5,3.86463]
[1727290632426,3.86416,2587.9,2587.4,4.68448]
[1727290632632,7.72844,2587.9,2587.4,0.8196]
[1727290632930,3.86416,2587.9,2587.4,0.8196]
[1727290633093,5.37993642,2587.9,2587.4,0.8196]
[1727290633598,4.65317,2587.7,2587.2,4.68477]
[1727290634195,0.096624,2587.6,2587.2,4.68477]
[1727290634519,3.86477,2587.5,2587.0,8.55039]
[1727290634697,3.86477,2587.5,2587.0,4.68499]
[1727290635030,0.7887,2587.7,2587.1,3.86533]
[1727290635031,3.86463,2587.6,2587.1,3.86533]
[1727290635194,3.86463,2587.6,2587.0,4.68499]
[1727290635932,3.86474,2587.5,2587.0,4.68499]
[1727290636394,3.86474,2587.5,2587.0,8.55039]
[1727290636600,3.86474,2587.5,2587.0,4.68499]
[1727290636829,3.86495,2587.4,2587.0,0.8196]
[1727290637031,3.86474,2587.5,2586.9,3.86561]
[1727290637335,3.86495,2587.4,2586.8,8.53501]
[1727290637653,3.86495,2587.4,2586.9,3.86561]
[1727290637855,8.26657422,2587.3,2586.8,4.66944]
[1727290638065,12.13172422,2587.3,2586.8,0.8037]
[1727290638234,9.55704354,2587.3,2586.8,4.66945]
[1727290638433,5.91641932,2587.3,2586.8,4.66945]
[1727290638759,0.09535072,2587.2,2586.8,4.66945]
[1727290638923,0.09535072,2587.2,2586.9,3.86561]
[1727290639119,7.50545422,2587.5,2586.9,3.86561]
[1727290639120,0.8117,2587.5,2587.0,3.8654]
[1727290639331,0.09535072,2587.1,2587.0,4.6349]
[1727290639641,4.67625,2587.7,2587.1,3.86527]
[1727290639844,0.467625,2587.6,2587.1,3.86527]
[1727290640357,0.467625,2587.6,2587.0,4.6349]
[1727290640515,0.467625,2587.6,2587.2,3.86516]
[1727290641155,4.332265,2587.6,2587.1,3.86532]
[1727290642350,4.332265,2587.6,2587.0,4.6349]
[1727290642351,0.467625,2587.6,2587.2,3.86517]
[1727290642547,4.67616,2587.7,2587.2,3.86517]
[1727290643718,3.86459,2587.6,2587.1,3.86531]
[1727290645122,0.8117,2587.7,2587.2,3.86511]
[1727290645329,0.8117,2587.7,2587.3,4.251411]
[1727290645851,0.8117,2587.7,2587.3,0.386511]
[1727290646029,15.89988,2588.0,2587.5,4.63421]
[1727290646228,4.67579,2588.0,2587.5,4.63421]
[1727290647077,8.53989,2588.0,2587.5,4.63421]
[1727290647367,4.67579,2588.0,2587.5,4.63421]
[1727290647861,4.67579,2588.0,2587.5,0.7695]
[1727290648070,3.86432,2587.8,2587.5,0.7695]
[1727290648228,3.86432,2587.8,2587.3,3.86503]
[1727290649868,3.86416,2587.9,2587.4,3.86486]
[1727290650890,4.62493,2587.7,2587.3,3.86502]
[1727290651096,4.62493,2587.7,2587.2,3.86518]
[1727290651287,8.48945,2587.7,2587.2,3.86518]
[1727290651680,8.48945,2587.7,2587.0,4.67937]
[1727290651681,3.8648,2587.5,2587.0,4.67937]
[1727290651881,7.72932,2587.6,2587.1,3.86528]
[1727290652081,3.86465,2587.6,2587.0,0.814]
[1727290652335,3.86495,2587.4,2586.9,3.86555]
[1727290652498,3.86495,2587.4,2586.9,4.252115]
[1727290653354,3.86519,2587.2,2586.8,0.7712]
[1727290653638,0.8303,2587.1,2586.7,3.86586]
[1727290653814,0.92542106,2587.1,2586.7,3.86586]
[1727290654194,0.92542106,2587.1,2586.8,3.86576]
[1727290657403,0.92542106,2587.1,2586.7,3.86586]
[1727290657604,0.8303,2587.1,2586.7,7.7317]
[1727290657807,0.09503492,2587.0,2586.8,3.8657]
[1727290658020,0.09503492,2587.0,2586.7,3.86584]
[1727290658536,0.09503492,2587.0,2586.8,3.86576]
[1727290658894,0.09503492,2587.0,2586.7,3.86584]
[1727290659101,0.09503492,2587.0,2586.9,3.86563]
[1727290659351,0.8255,2587.3,2586.9,3.86563]
[1727290659495,0.09501578,2587.0,2586.9,3.86563]
[1727290659690,0.8255,2587.3,2586.9,3.86563]
[1727290659895,0.8255,2587.3,2586.7,3.86578]
[1727290659896,0.09501578,2587.0,2586.7,3.86578]
[1727290660091,0.8255,2587.3,2586.8,3.86571]
[1727290660331,0.09502535,2586.9,2586.8,3.86571]
[1727290660571,0.8255,2587.3,2586.7,3.86578]
[1727290660833,0.8255,2587.3,2586.7,7.73158]
[1727290661039,0.09461385,2587.2,2586.7,3.86578]
[1727290661232,0.09461385,2587.2,2586.7,7.73164]
[1727290661400,0.09461385,2587.2,2586.7,3.86578]
[1727290661603,0.09461385,2587.2,2586.8,3.86577]
[1727290661903,1.294535,2587.3,2586.8,3.86577]
[1727290662107,0.09459471,2587.1,2586.8,3.86577]
[1727290662304,1.294535,2587.3,2586.8,3.86577]
[1727290662635,1.294535,2587.3,2586.8,3.86578]
[1727290662806,0.09459471,2587.2,2586.7,3.86578]
[1727290663134,0.09459471,2587.2,2586.8,3.86576]
[1727290663436,0.8255,2587.3,2586.8,3.86575]
[1727290663635,0.09460428,2587.1,2586.8,3.86575]
[1727290663842,0.8255,2587.3,2586.8,3.86575]
[1727290664141,0.8255,2587.3,2586.9,3.86559]
[1727290664142,0.09460428,2587.0,2586.9,3.86559]
[1727290664444,0.09458514,2587.0,2586.8,7.73144]
[1727290664642,0.8255,2587.3,2586.8,7.73144]
[1727290664797,0.09458514,2586.9,2586.8,3.86569]
[1727290665002,0.8255,2587.3,2586.8,3.86569]
[1727290665260,0.09458514,2587.2,2586.8,3.86569]
[1727290665396,0.8255,2587.3,2586.8,7.73139]
[1727290665739,0.09458514,2587.2,2586.7,3.86585]
[1727290666039,0.09458514,2587.2,2586.6,4.68106]
[1727290666040,0.09458514,2587.2,2586.8,3.86577]
[1727290666201,1.294534,2587.3,2586.8,3.86577]
[1727290666403,0.09460428,2587.2,2586.8,3.86577]
[1727290666735,1.294534,2587.3,2586.8,3.86568]
[1727290666944,0.09460428,2587.1,2586.9,3.86562]
[1727290667143,0.09459471,2587.2,2586.9,3.86562]
[1727290667304,0.8255,2587.3,2586.8,3.86568]
[1727290667505,0.09459471,2587.1,2586.8,7.73133]
[1727290667733,0.8255,2587.3,2586.8,3.86565]
[1727290668049,0.469044,2587.2,2586.8,3.86565]
[1727290668340,0.09458514,2587.2,2586.8,7.73136]
[1727290668545,0.09458514,2587.2,2586.6,3.86596]
[1727290668739,4.41202422,2587.1,2586.4,4.69019]
[1727290668996,4.41202422,2587.1,2586.2,4.69046]
[1727290668997,4.63713,2586.9,2586.2,4.69046]
[1727290669257,4.63713,2586.9,2586.3,3.8665]
[1727290669536,0.09459471,2586.8,2586.2,0.8239]
[1727290669747,0.09459471,2586.8,2586.3,3.64062422]
[1727290669910,0.09459471,2586.8,2586.7,3.86592]
[1727290670134,0.7714,2587.1,2586.8,3.86573]
[1727290670742,0.7714,2587.1,2586.7,3.86592]
[1727290670946,3.7714,2587.1,2586.6,0.8239]
[1727290671103,4.535061,2587.1,2586.6,3.86607]
[1727290671303,8.400401,2587.1,2586.6,3.86607]
[1727290671517,3.86549,2587.0,2586.5,3.86622]
[1727290671819,5.0920511,2587.0,2586.5,3.86615]
[1727290674209,3.86549,2587.0,2586.5,3.86615]
[1727290674416,7.73107,2587.0,2586.5,3.86615]
[1727290675269,7.73105,2587.0,2586.5,3.86615]
[1727290675550,3.86549,2587.0,2586.5,3.86614]
[1727290675710,3.86549,2587.0,2586.5,7.50676422]
[1727290676028,3.86549,2587.0,2586.5,5.08655842]
[1727290676911,7.73109,2587.0,2586.5,5.08655842]
[1727290677413,3.86566,2586.9,2586.5,1.22041842]
[1727290677637,3.86566,2586.9,2586.4,6.37964342]
[1727290680379,3.86586,2586.8,2586.4,0.831]
[1727290680686,0.8299,2586.7,2586.3,3.86642]
[1727290681272,0.8299,2586.7,2586.3,4.88980734]
[1727290681580,0.8299,2586.7,2586.4,3.86635]
[1727290681871,0.8299,2586.7,2586.3,4.88980734]
[1727290682040,0.8299,2586.7,2586.3,8.75623734]
[1727290682246,0.8299,2586.7,2586.4,3.86633]
[1727290682763,0.8299,2586.7,2586.3,4.88988734]
[1727290682962,0.8299,2586.7,2586.4,3.86629]
[1727290683270,0.8299,2586.7,2586.4,4.99197908]
[1727290683479,0.09432667,2586.6,2586.4,4.99197908]
[1727290683988,0.09432667,2586.6,2586.4,1.12568908]